bitfinex-derivatives/quotes_SOLF0:USTF0_20220104
["timestamp","ask_amount","ask_price","bid_price","bid_amount"]
[1641317896404,30.66469,171.58,171.48,4.11054409]
[1641317897204,30.66469,171.58,171.47,38.33894409]
[1641317897403,2.9999,171.56,171.47,38.33894409]
[1641317897803,27.66479,171.54,171.47,38.33894409]
[1641317898403,27.66479,171.58,171.47,38.33894409]
[1641317898704,27.66479,171.58,171.48,4.11054409]
[1641317899605,27.66479,171.58,171.55,4.11054409]
[1641317900404,40.00777182,171.58,171.55,4.11054409]
[1641317900803,43.00767182,171.58,171.55,4.11054409]
[1641317901206,2.9999,171.57,171.54,4.11054409]
[1641317901406,43.00767182,171.58,171.54,4.11054409]
[1641317901604,2.9999,171.57,171.54,4.11054409]
[1641317901806,2.9999,171.57,171.55,4.11054409]
[1641317903205,12.34298182,171.57,171.54,4.533]
[1641317905108,40.00777182,171.58,171.55,4.11054409]
[1641317905707,40.00777182,171.58,171.56,4.11054409]
[1641317905708,27.66479,171.58,171.56,4.11054409]
[1641317906508,30.66469,171.58,171.56,4.11054409]
[1641317906909,27.66479,171.58,171.56,4.11054409]
[1641317908311,30.66469,171.58,171.56,4.11054409]
[1641317909010,27.66479,171.58,171.56,4.11054409]
[1641317909610,12.34298182,171.59,171.56,4.11054409]
[1641317910212,27.66479,171.59,171.55,4.11054409]
[1641317910711,15.34288182,171.6,171.55,4.11054409]
[1641317911713,2.9999,171.58,171.55,4.11054409]
[1641317911911,15.34288182,171.6,171.55,4.11054409]
[1641317912311,30.66469,171.59,171.55,4.11054409]
[1641317912713,27.66479,171.59,171.55,4.11054409]
[1641317913011,15.34288182,171.6,171.55,4.11054409]
[1641317914511,27.66479,171.59,171.55,4.11054409]
[1641317917014,2.9999,171.58,171.55,4.11054409]
[1641317917215,30.66469,171.59,171.55,4.11054409]
[1641317917716,2.9999,171.56,171.55,4.409e-05]
[1641317917917,2.9999,171.58,171.55,4.409e-05]
[1641317918117,30.66469,171.59,171.55,4.409e-05]
[1641317918317,12.34298182,171.58,171.5,4.147]
[1641317918615,12.34298182,171.58,171.49,12.34298182]
[1641317918815,27.66479,171.56,171.49,12.34298182]
[1641317919016,40.00777182,171.56,171.51,2.11522168]
[1641317919215,12.34298182,171.56,171.51,2.11522168]
[1641317920123,12.34298182,171.56,171.5,2.11522168]
[1641317921117,37.71455077,171.57,171.5,2.11522168]
[1641317921518,37.71455077,171.57,171.5,7.14322168]
[1641317922018,29.65854684,171.57,171.5,7.14322168]
[1641317922218,14.33241659,171.56,171.5,5.028]
[1641317922819,27.66479,171.57,171.51,2.11522168]
[1641317923519,1.99546938,171.56,171.51,2.11522168]
[1641317924219,40.00310829,171.57,171.51,2.11522168]
[1641317924419,27.66479,171.57,171.51,2.11522168]
[1641317925123,1.99502538,171.56,171.51,2.11522168]
[1641317925623,27.66479,171.57,171.51,14.4582035]
[1641317925822,12.33702847,171.58,171.51,14.4582035]
[1641317926522,34.535,171.6,171.51,14.4582035]
[1641317926723,14.3312509,171.59,171.52,44.16388182]
[1641317926923,27.66479,171.58,171.52,44.16388182]
[1641317927523,1.99492769,171.57,171.53,2.11522168]
[1641317928224,27.66479,171.58,171.53,2.11522168]
[1641317928424,27.66479,171.58,171.53,6.97922168]
[1641317929426,1.99386692,171.57,171.54,2.11522168]
[1641317930124,27.66479,171.58,171.53,2.11522168]
[1641317930827,1.99384779,171.57,171.53,2.11522168]
[1641317931227,27.66479,171.58,171.53,2.11522168]
[1641317932426,1.99383148,171.57,171.53,2.11522168]
[1641317932930,27.66479,171.58,171.53,2.11522168]
[1641317933630,46.86594468,171.6,171.53,2.11522168]
[1641317934932,14.32481986,171.59,171.53,2.11522168]
[1641317935433,34.535,171.6,171.53,2.11522168]
[1641317936034,27.66479,171.59,171.53,2.11522168]
[1641317936236,41.98967903,171.59,171.53,2.11522168]
[1641317936833,1.99387685,171.58,171.53,2.11522168]
[1641317937535,14.3249233,171.59,171.53,2.11522168]
[1641317937937,41.9897133,171.59,171.53,2.11522168]
[1641317938236,27.66479,171.59,171.53,2.11522168]
[1641317938937,1.99391158,171.58,171.53,2.11522168]
[1641317939936,27.66479,171.59,171.53,2.11522168]
[1641317940939,1.99480326,171.58,171.53,2.11522168]
[1641317941539,27.66479,171.59,171.53,2.11522168]
[1641317942242,1.99477962,171.58,171.53,2.11522168]
[1641317943042,27.66479,171.59,171.53,2.11522168]
[1641317943842,1.99472066,171.58,171.53,2.11522168]
[1641317944847,27.66479,171.59,171.53,2.11522168]
[1641317945547,14.33229345,171.58,171.53,2.11522168]
[1641317946649,27.66479,171.59,171.53,2.11522168]
[1641317947149,14.33247492,171.58,171.53,2.11522168]
[1641317947751,34.535,171.6,171.53,2.11522168]
[1641317947951,37.5349,171.6,171.53,2.11522168]
[1641317948353,27.66479,171.59,171.53,2.11522168]
[1641317948754,41.98692668,171.59,171.53,2.11522168]
[1641317949154,1.99361424,171.58,171.53,2.11522168]
[1641317950155,39.99331244,171.59,171.53,2.11522168]
[1641317951456,1.993397,171.57,171.53,2.11522168]
[1641317952056,27.66479,171.59,171.53,2.11522168]
[1641317953057,1.99312639,171.58,171.53,2.11522168]
[1641317953759,27.66479,171.59,171.53,5.11522168]
[1641317953957,27.66479,171.59,171.53,8.66622168]
[1641317954460,27.66479,171.59,171.53,36.33101168]
[1641317954861,27.66479,171.59,171.54,2.11522168]
[1641317955059,21.08725997,171.59,171.54,2.11522168]
[1641317956062,15.32842244,171.62,171.54,2.11522168]
[1641317956462,2.05103285,171.58,171.54,2.11522168]
[1641317957062,14.37955529,171.61,171.54,2.11522168]
[1641317958766,12.32852244,171.61,171.53,22.68825736]
[1641317958964,12.32852244,171.61,171.53,50.35304736]
[1641317959164,12.32852244,171.61,171.53,42.1229935]
[1641317959464,12.32852244,171.61,171.54,2.11522168]
[1641317959465,12.32852244,171.6,171.54,2.11522168]
[1641317962868,2.05103285,171.61,171.54,2.11522168]
[1641317963269,5.05093285,171.61,171.54,2.11522168]
[1641317963669,2.05103285,171.61,171.54,2.11522168]
[1641317963872,5.05093285,171.61,171.54,2.11522168]
[1641317964070,2.9999,171.58,171.54,2.11522168]
[1641317964272,8.5599,171.58,171.54,2.11522168]
[1641317964470,5.56,171.58,171.54,2.11522168]
[1641317964870,5.56,171.58,171.51,2.11522168]
[1641317965071,32.5366,171.57,171.51,2.11522168]
[1641317969277,27.66479,171.59,171.51,2.11522168]
[1641317969477,27.66479,171.59,171.52,30.8406]
[1641317970476,27.66479,171.59,171.53,2.11522168]
[1641317973683,2.0469137,171.58,171.53,2.11522168]
[1641317975383,27.66479,171.59,171.53,2.11522168]
[1641317976183,2.04694292,171.58,171.53,2.11522168]
[1641317978886,2.04694292,171.58,171.55,4.11139008]
[1641317983492,2.04694292,171.58,171.54,4.11139008]
[1641317983990,2.04694292,171.58,171.54,6.22661176]
[1641317984590,2.04694292,171.58,171.54,4.11139008]
[1641317986094,14.37546536,171.58,171.53,6.22661176]
[1641317991801,2.04694292,171.58,171.54,4.11139008]
[1641317992601,14.37546536,171.58,171.54,4.11139008]
[1641318000915,4.10713533,171.55,171.54,4.11139008]
[1641318001114,2.04694292,171.58,171.54,4.11139008]
[1641318001514,27.66479,171.59,171.54,15.34298182]
[1641318001811,27.66479,171.59,171.55,3.0]
[1641318002012,27.66479,171.59,171.55,5.6]
[1641318002212,27.66479,171.59,171.55,20.0582035]
[1641318002812,27.66479,171.59,171.56,14.4582035]
[1641318003312,27.66479,171.59,171.57,2.11522168]
[1641318004615,27.66479,171.59,171.56,2.11522168]
[1641318006215,12.32852244,171.64,171.56,2.11522168]
[1641318006416,12.32852244,171.64,171.56,34.78822168]
[1641318006819,27.66479,171.59,171.56,34.78822168]
[1641318007015,27.66479,171.59,171.56,2.11522168]
[1641318007315,27.66479,171.59,171.57,2.11522168]
[1641318007914,27.66479,171.59,171.55,20.94298182]
[1641318007915,27.66479,171.59,171.56,2.11522168]
[1641318009318,12.32852244,171.65,171.56,2.11522168]
[1641318009717,27.66479,171.59,171.56,2.11522168]
[1641318010119,27.66479,171.62,171.56,2.11522168]
[1641318010618,27.66479,171.62,171.56,14.4582035]
[1641318011520,27.66479,171.62,171.57,12.34298182]
[1641318012322,27.66479,171.62,171.58,12.34298182]
[1641318013222,27.66479,171.62,171.54,43.91950243]
[1641318013223,27.66479,171.62,171.57,12.34298182]
[1641318015222,21.08868344,171.62,171.57,12.34298182]
[1641318019430,21.08868344,171.62,171.58,12.34298182]
[1641318019829,21.08868344,171.62,171.58,17.33298182]
[1641318020330,21.08868344,171.62,171.61,3.0]
[1641318020531,12.33022015,171.65,171.6,3.0]
[1641318020830,12.33022015,171.65,171.59,37.07462168]
[1641318021332,12.33022015,171.69,171.61,14.4582035]
[1641318022133,39.99501015,171.69,171.61,40.00777182]
[1641318022732,14.34357371,171.68,171.62,2.11522168]
[1641318023532,12.33022015,171.67,171.63,2.11522168]
[1641318024333,12.33022015,171.67,171.6,12.34298182]
[1641318025335,27.66479,171.69,171.61,27.66479]
[1641318027440,2.9999,171.68,171.59,31.9594]
[1641318027639,4.616,171.7,171.59,31.9594]
[1641318027939,27.66479,171.69,171.61,27.66479]
[1641318030843,14.40185756,171.68,171.62,2.03682726]
[1641318032647,12.33022015,171.68,171.61,27.66479]
[1641318033047,12.33022015,171.67,171.62,2.03682726]
[1641318033648,16.58722015,171.67,171.62,2.03682726]
[1641318033849,7.2569,171.67,171.62,2.03682726]
[1641318034048,4.257,171.67,171.62,2.03682726]
[1641318034248,7.2569,171.67,171.62,2.03682726]
[1641318034449,2.9999,171.66,171.62,2.03682726]
[1641318034649,27.66479,171.64,171.6,2.03682726]
[1641318035651,2.07163741,171.63,171.6,2.03682726]
[1641318037455,2.07163741,171.63,171.56,22.55045073]
[1641318037655,2.07163741,171.63,171.56,55.20555073]
[1641318038055,2.07163741,171.63,171.57,2.03682726]
[1641318038257,2.07163741,171.63,171.57,7.97882726]
[1641318038658,2.07163741,171.63,171.58,2.03682726]
[1641318042564,14.40185756,171.63,171.58,2.03682726]
[1641318043365,2.07163741,171.63,171.57,2.03682726]
[1641318043563,5.07153741,171.63,171.57,2.03682726]
[1641318043764,2.07163741,171.62,171.57,2.03682726]
[1641318044665,14.40185756,171.63,171.57,2.03682726]
[1641318045967,2.07163741,171.63,171.57,7.11082726]
[1641318046367,27.66479,171.64,171.58,2.03682726]
[1641318047770,27.66479,171.64,171.57,2.03682726]
[1641318048670,2.06583618,171.63,171.57,2.03682726]
[1641318050471,27.66479,171.64,171.57,2.03682726]
[1641318050671,42.35552015,171.67,171.57,8.18682726]
[1641318051273,2.06550789,171.66,171.58,2.03682726]
[1641318052872,2.9999,171.63,171.58,2.03682726]
[1641318053071,2.9999,171.63,171.56,32.6551]
[1641318053271,27.66479,171.61,171.54,12.34298182]
[1641318053471,31.77879,171.61,171.54,12.34298182]
[1641318053973,4.114,171.61,171.54,12.34298182]
[1641318054372,4.114,171.61,171.53,32.7676]
[1641318055173,4.114,171.61,171.54,20.46485206]
[1641318055872,15.33012015,171.62,171.54,20.46485206]
[1641318056172,2.9999,171.59,171.54,20.46485206]
[1641318056376,8.8769,171.59,171.54,20.46485206]
[1641318056575,5.877,171.59,171.53,45.11058182]
[1641318061484,31.7749729,171.57,171.53,45.11058182]
[1641318062388,4.1101829,171.57,171.53,45.11058182]
[1641318063389,4.1101829,171.56,171.53,32.7676]
[1641318064089,4.1101829,171.58,171.54,20.46484712]
[1641318065591,4.1101829,171.58,171.54,48.12963712]
[1641318066692,4.1101829,171.58,171.54,40.00777182]
[1641318068994,4.1101829,171.6,171.54,27.66479]
[1641318069695,4.1101829,171.6,171.53,45.11058182]
[1641318070294,4.1101829,171.6,171.54,27.66479]
[1641318075801,4.1101829,171.58,171.54,40.00777182]
[1641318076000,8.9971829,171.58,171.54,40.00777182]
[1641318076400,4.887,171.58,171.54,40.00777182]
[1641318078001,8.99698479,171.58,171.54,12.34298182]
[1641318078405,4.887,171.58,171.57,4.11011554]
[1641318080704,12.33044804,171.61,171.57,4.11011554]
[1641318081807,27.66479,171.62,171.57,4.11011554]
[1641318082608,12.32994044,171.61,171.57,4.11011554]
[1641318083312,32.80379,171.62,171.57,4.11011554]
[1641318083811,27.66479,171.62,171.57,4.11011554]
[1641318084310,12.32991764,171.61,171.57,4.11011554]
[1641318084909,27.66479,171.62,171.59,4.11011554]
[1641318086514,27.66479,171.62,171.6,4.11011554]
[1641318088815,12.32811555,171.64,171.6,4.11011554]
[1641318091017,27.66479,171.62,171.6,4.11011554]
[1641318092016,12.32811555,171.64,171.6,4.11011554]
[1641318093717,2.09050845,171.64,171.62,4.11011554]
[1641318094719,5.528,171.65,171.62,4.11011554]
[1641318094920,12.32811555,171.64,171.6,6.12853658]
[1641318095721,4.09796834,171.61,171.59,27.66479]
[1641318096221,4.09796834,171.61,171.57,36.65191554]
[1641318096622,2.08529781,171.64,171.57,36.65191554]
[1641318097022,2.08529781,171.64,171.59,27.66479]
[1641318097323,4.09798662,171.61,171.59,27.66479]
[1641318097721,4.09798662,171.61,171.57,36.65191554]
[1641318097922,2.08529781,171.64,171.57,36.65191554]
[1641318098726,4.09803614,171.61,171.57,36.65191554]
[1641318099725,2.08529781,171.64,171.57,36.65191554]
[1641318099927,2.08529781,171.64,171.59,31.77490554]
[1641318100125,12.29390502,171.63,171.59,31.77490554]
[1641318100625,2.08529781,171.64,171.59,31.77490554]
[1641318100826,10.40160151,171.65,171.59,31.77490554]
[1641318101626,12.32861691,171.63,171.59,31.77490554]
[1641318102828,12.32861691,171.63,171.59,4.11011554]
[1641318103227,10.40160151,171.65,171.59,4.11011554]
[1641318103728,12.32859196,171.63,171.59,4.11011554]
[1641318104535,12.32859196,171.63,171.59,31.77490554]
[1641318104732,10.40160151,171.65,171.59,31.77490554]
[1641318105231,12.32860839,171.63,171.59,31.77490554]
[1641318106232,10.40160151,171.65,171.59,31.77490554]
[1641318106634,12.32860576,171.63,171.59,31.77490554]
[1641318107234,12.32860576,171.63,171.59,4.11011554]
[1641318108035,10.40160151,171.65,171.59,4.11011554]
[1641318108636,12.32859881,171.63,171.59,31.77490554]
[1641318109135,10.40160151,171.65,171.59,31.77490554]
[1641318109435,10.40160151,171.65,171.59,4.11011554]
[1641318109937,12.32858339,171.63,171.59,4.11011554]
[1641318110636,10.40160151,171.65,171.59,31.77490554]
[1641318111434,12.32854949,171.63,171.59,31.77490554]
[1641318112337,10.40160151,171.65,171.59,31.77490554]
[1641318112538,12.32774445,171.64,171.6,6.12847284]
[1641318113237,10.40160151,171.65,171.6,6.12847284]
[1641318114339,2.08529781,171.65,171.6,6.12847284]
[1641318114539,2.08529781,171.65,171.62,4.11011554]
[1641318115141,43.29291671,171.66,171.62,4.11011554]
[1641318115339,12.32681671,171.66,171.62,4.11011554]
[1641318116640,14.41733402,171.66,171.62,4.11011554]
[1641318117039,12.32709682,171.65,171.61,6.12847284]
[1641318117840,4.10903674,171.62,171.61,6.12847284]
[1641318118741,12.32302171,171.65,171.61,6.12847284]
[1641318118942,12.32302171,171.65,171.61,4.11011554]
[1641318120646,12.32302171,171.65,171.6,6.12847284]
[1641318121446,4.10775887,171.61,171.6,4.11011554]
[1641318122347,12.32302171,171.65,171.6,4.11011554]
[1641318123149,12.32302171,171.64,171.59,31.77490554]
[1641318124450,7.6749,171.65,171.59,31.77490554]
[1641318124451,12.32302171,171.62,171.59,27.66479]
[1641318125149,12.32302171,171.62,171.58,4.11011554]
[1641318125850,12.32302171,171.62,171.59,27.66479]
[1641318126351,2.09063716,171.64,171.59,27.66479]
[1641318126550,14.4187505,171.64,171.6,4.11011554]
[1641318127251,4.675,171.65,171.6,4.11011554]
[1641318127451,12.32921002,171.62,171.58,4.11011554]
[1641318127952,12.32921002,171.62,171.59,27.66479]
[1641318128152,7.6749,171.65,171.59,27.66479]
[1641318128349,2.09149776,171.64,171.59,27.66479]
[1641318128850,12.32970007,171.62,171.59,27.66479]
[1641318129850,2.09149776,171.64,171.59,31.77490554]
[1641318129851,12.32970007,171.63,171.59,31.77490554]
[1641318130253,12.32970007,171.63,171.59,4.11011554]
[1641318131552,12.32970007,171.63,171.59,31.77490554]
[1641318132154,12.32970007,171.63,171.59,4.11011554]
[1641318132854,12.32970007,171.63,171.59,9.52911554]
[1641318133461,12.32970007,171.65,171.61,4.11011554]
[1641318134058,14.42119783,171.65,171.61,4.11011554]
[1641318135059,8.31437297,171.66,171.61,4.11011554]
[1641318135358,11.31427297,171.66,171.61,4.11011554]
[1641318135558,8.31437297,171.66,171.61,4.11011554]
[1641318135960,12.32832051,171.64,171.59,31.77490554]
[1641318136559,12.32832051,171.64,171.6,4.11011554]
[1641318136760,12.32832051,171.64,171.6,6.12844276]
[1641318137859,14.41944178,171.64,171.6,6.12844276]
[1641318138461,2.9999,171.65,171.6,6.12844276]
[1641318139360,8.31437297,171.66,171.6,6.12844276]
[1641318139760,14.4195149,171.64,171.6,6.12844276]
[1641318140262,12.32837274,171.64,171.6,6.12844276]
[1641318140963,2.09114216,171.65,171.6,6.12844276]
[1641318142264,12.32825377,171.64,171.6,6.12844276]
[1641318143064,12.32825377,171.63,171.59,31.77490554]
[1641318144570,15.19051513,171.66,171.59,31.77490554]
[1641318144771,10.40551513,171.66,171.59,31.77490554]
[1641318145070,12.32884798,171.63,171.59,31.77490554]
[1641318145671,4.10295759,171.6,171.59,27.66479]
[1641318146274,4.10295759,171.6,171.58,4.11011554]
[1641318146573,2.09114216,171.63,171.58,4.11011554]
[1641318146873,2.09114216,171.63,171.59,27.66479]
[1641318147073,4.10296533,171.6,171.59,27.66479]
[1641318147774,4.10296533,171.6,171.58,6.12512299]
[1641318147974,2.08798059,171.63,171.58,4.11011554]
[1641318148174,6.307,171.6,171.58,4.11011554]
[1641318148375,6.307,171.6,171.59,4.11011554]
[1641318149177,6.307,171.6,171.59,31.77490554]
[1641318149375,8.3983802,171.6,171.59,31.77490554]
[1641318150176,6.307,171.6,171.59,33.79318282]
[1641318151379,6.307,171.6,171.59,29.68306728]
[1641318153379,6.073,171.64,171.59,29.68306728]
[1641318153582,2.9999,171.65,171.59,29.68306728]
[1641318153879,2.9999,171.63,171.59,29.68306728]
[1641318154080,2.9999,171.62,171.59,29.68306728]
[1641318154281,2.9999,171.62,171.6,6.12761183]
[1641318154883,2.9999,171.62,171.6,4.10933455]
[1641318155081,2.09159503,171.61,171.59,27.66479]
[1641318155580,2.9999,171.6,171.58,4.10933455]
[1641318155783,2.9999,171.59,171.54,12.34298182]
[1641318155981,2.9999,171.57,171.54,12.34298182]
[1641318156183,2.9999,171.56,171.52,12.34298182]
[1641318156583,2.9999,171.55,171.52,12.34298182]
[1641318156884,7.8059,171.55,171.52,12.34298182]
[1641318157083,4.806,171.55,171.52,12.34298182]
[1641318157484,27.66479,171.53,171.52,12.34298182]
[1641318157683,27.66479,171.53,171.52,14.32403016]
[1641318157884,27.66479,171.53,171.52,1.98104834]
[1641318158785,29.79496013,171.53,171.48,12.34298182]
[1641318159585,27.66479,171.53,171.48,12.34298182]
[1641318159785,27.66479,171.53,171.5,12.34298182]
[1641318160889,27.66479,171.53,171.51,12.34298182]
[1641318161088,21.08788943,171.53,171.51,12.34298182]
[1641318161691,21.08788943,171.53,171.5,14.32403016]
[1641318162189,21.08788943,171.53,171.5,12.34298182]
[1641318163392,21.08788943,171.53,171.49,1.98104834]
[1641318164191,2.18928274,171.52,171.49,1.98104834]
[1641318165092,21.08788943,171.53,171.49,12.34298182]
[1641318165792,21.08788943,171.53,171.49,14.32403016]
[1641318166494,21.08788943,171.53,171.5,1.98104834]
[1641318167595,12.33168856,171.56,171.5,1.98104834]
[1641318168095,27.66479,171.53,171.5,1.98104834]
[1641318169297,27.66479,171.53,171.49,12.34298182]
[1641318169498,27.66479,171.53,171.48,3.0]
[1641318170300,27.66479,171.53,171.49,1.91072803]
[1641318171704,29.661,171.59,171.49,1.91072803]
[1641318171902,29.661,171.59,171.5,31.2785]
[1641318172305,27.66479,171.53,171.5,31.2785]
[1641318172502,27.66479,171.53,171.49,1.91072803]
[1641318172903,27.66479,171.53,171.47,3.0]
[1641318173403,27.66479,171.53,171.48,1.91077312]
[1641318173603,29.661,171.59,171.48,4.91077312]
[1641318173804,29.661,171.59,171.49,31.1413]
[1641318174205,29.661,171.59,171.49,33.05207312]
[1641318174404,27.66479,171.58,171.49,33.05207312]
[1641318175205,27.66479,171.58,171.5,3.0]
[1641318175405,27.66479,171.58,171.51,3.0]
[1641318175606,27.66479,171.58,171.52,3.0]
[1641318176206,27.66479,171.58,171.54,12.34298182]
[1641318177106,27.66479,171.58,171.54,14.25375494]
[1641318177806,27.66479,171.58,171.54,12.34298182]
[1641318181109,27.66479,171.58,171.53,12.34298182]
[1641318181912,2.18804636,171.57,171.52,12.34298182]
[1641318182811,27.66479,171.58,171.53,12.34298182]
[1641318183612,27.66479,171.58,171.54,12.34298182]
[1641318184515,2.18798229,171.57,171.52,12.34298182]
[1641318185814,43.35868856,171.6,171.52,12.34298182]
[1641318186214,2.18777316,171.59,171.53,12.34298182]
[1641318186613,27.66479,171.58,171.53,12.34298182]
[1641318187918,2.18777316,171.57,171.53,12.34298182]
[1641318188118,8.21277316,171.57,171.52,12.34298182]
[1641318188419,6.025,171.57,171.52,12.34298182]
[1641318188923,9.0249,171.57,171.52,12.34298182]
[1641318189720,6.025,171.57,171.52,12.34298182]
[1641318189923,9.0249,171.57,171.52,12.34298182]
[1641318190523,27.66479,171.55,171.52,12.34298182]
[1641318191224,2.18821572,171.54,171.52,12.34298182]
[1641318191422,2.18821572,171.54,171.49,12.34298182]
[1641318192425,27.66479,171.55,171.49,12.34298182]
[1641318193523,2.1882112,171.54,171.49,12.34298182]
[1641318195325,27.66479,171.55,171.49,12.34298182]
[1641318196027,2.18815247,171.54,171.49,12.34298182]
[1641318197229,2.18815247,171.54,171.48,12.34298182]
[1641318197931,2.18815247,171.54,171.49,12.34298182]
[1641318199534,2.18815247,171.54,171.48,12.34298182]
[1641318200839,2.18815247,171.54,171.49,12.34298182]
[1641318204347,2.18815247,171.54,171.48,12.34298182]
[1641318205050,2.18815247,171.54,171.49,12.34298182]
[1641318209253,2.18815247,171.54,171.48,12.34298182]
[1641318209854,27.66479,171.55,171.5,12.34298182]
[1641318212757,2.18939784,171.54,171.48,12.34298182]
[1641318213656,2.18939784,171.54,171.49,12.34298182]
[1641318214960,29.8582,171.56,171.49,12.34298182]
[1641318215558,29.8582,171.56,171.49,44.41318182]
[1641318215758,29.8582,171.56,171.49,46.32395494]
[1641318215759,2.18837969,171.55,171.49,46.32395494]
[1641318216562,4.10937021,171.54,171.53,4.10937021]
[1641318216762,4.10937021,171.54,171.53,9.68737021]
[1641318217164,4.10937021,171.54,171.53,7.48877312]
[1641318218465,4.10937021,171.55,171.53,7.48877312]
[1641318219466,4.10937021,171.56,171.54,1.91077312]
[1641318220770,4.10937021,171.56,171.54,4.91077312]
[1641318221269,2.18837969,171.58,171.55,3.0]
[1641318221469,12.33168856,171.6,171.54,4.91077312]
[1641318221768,12.33168856,171.6,171.55,3.0]
[1641318222168,12.33168856,171.6,171.56,3.0]
[1641318222368,12.33168856,171.61,171.56,3.0]
[1641318222971,12.33168856,171.61,171.56,30.66479]
[1641318223171,12.33168856,171.64,171.56,43.00777182]
[1641318223772,12.33168856,171.64,171.56,40.00777182]
[1641318224175,8.5722177,171.65,171.57,20.20794285]
[1641318224375,8.5722177,171.65,171.57,50.42724285]
[1641318224775,2.9999,171.63,171.57,12.34298182]
[1641318224974,27.66479,171.61,171.56,12.34298182]
[1641318225675,39.99314978,171.61,171.54,32.4331]
[1641318226278,27.66479,171.61,171.54,44.77608182]
[1641318226579,27.66479,171.61,171.54,12.34298182]
[1641318227180,39.99455503,171.61,171.53,12.34298182]
[1641318227982,27.66479,171.61,171.53,12.34298182]
[1641318228581,39.99572607,171.61,171.53,12.34298182]
[1641318229483,12.33093607,171.6,171.52,20.35906777]
[1641318230184,27.66479,171.61,171.52,20.35906777]
[1641318230986,39.99536713,171.61,171.53,12.34298182]
[1641318231185,42.99526713,171.61,171.53,12.34298182]
[1641318231384,39.99536713,171.61,171.53,12.34298182]
[1641318231785,12.33117728,171.6,171.52,20.35906777]
[1641318232485,27.66479,171.61,171.52,20.35906777]
[1641318232886,30.66469,171.61,171.52,20.35906777]
[1641318233188,12.33145611,171.6,171.52,20.35906777]
[1641318234789,27.66479,171.61,171.52,12.34298182]
[1641318234990,27.66479,171.61,171.51,44.21388182]
[1641318235188,30.66469,171.61,171.51,44.21388182]
[1641318236189,27.66479,171.61,171.51,44.21388182]
[1641318236389,27.66479,171.61,171.51,47.21388182]
[1641318236591,27.66479,171.61,171.51,44.21388182]
[1641318236791,27.66479,171.61,171.52,20.33578804]
[1641318236992,21.08839655,171.61,171.52,20.33578804]
[1641318237591,21.08839655,171.61,171.52,23.33578804]
[1641318238595,21.08839655,171.61,171.52,20.33578804]
[1641318239194,21.08839655,171.61,171.52,48.00057804]
[1641318239895,21.08839655,171.61,171.52,40.00777182]
[1641318244098,21.08839655,171.61,171.54,12.34298182]
[1641318247298,21.08839655,171.61,171.55,12.34298182]
[1641318249000,21.08839655,171.61,171.56,12.34298182]
[1641318249599,21.08839655,171.61,171.55,12.34298182]
[1641318252200,26.01839655,171.61,171.55,12.34298182]
[1641318254102,26.01839655,171.61,171.56,12.34298182]
[1641318255306,26.01839655,171.61,171.55,12.34298182]
[1641318256604,26.01839655,171.61,171.52,40.00777182]
[1641318256803,26.01839655,171.61,171.52,12.34298182]
[1641318257306,26.01839655,171.61,171.52,20.18812905]
[1641318258906,26.01839655,171.61,171.51,44.21388182]
[1641318260808,2.9999,171.6,171.51,44.21388182]
[1641318261409,15.29509959,171.6,171.51,31.8709]
[1641318261809,27.66479,171.57,171.51,31.8709]
[1641318262009,33.89179,171.57,171.51,31.8709]
[1641318262309,33.89179,171.57,171.52,1.91598366]
[1641318263512,2.18792808,171.56,171.52,1.91598366]
[1641318263912,27.66479,171.57,171.52,1.91598366]
[1641318265212,27.66479,171.57,171.52,9.77443901]
[1641318265413,27.66479,171.57,171.52,22.11742083]
[1641318265815,27.66479,171.57,171.52,14.25896548]
[1641318266015,2.19161255,171.56,171.52,1.91598366]
[1641318267120,31.93179,171.57,171.52,22.11743768]
[1641318267720,2.19161274,171.56,171.52,1.91598366]
[1641318268622,31.3125,171.58,171.52,1.91598366]
[1641318268821,31.3125,171.58,171.53,12.34298182]
[1641318269922,33.38359614,171.61,171.53,18.04498182]
[1641318270123,21.08839655,171.61,171.54,12.34298182]
[1641318270922,2.19079141,171.6,171.54,14.25896548]
[1641318274229,2.19079141,171.6,171.53,12.34298182]
[1641318275934,2.19079141,171.6,171.54,12.34298182]
[1641318282245,4.10757357,171.59,171.58,4.10757357]
[1641318285355,2.19079141,171.6,171.58,4.10757357]
[1641318286557,4.11050824,171.59,171.58,4.10757357]
[1641318287755,4.11050824,171.59,171.56,1.91598366]
[1641318289057,4.11050824,171.6,171.56,1.91598366]
[1641318289757,2.19109917,171.6,171.59,4.11040793]
[1641318291764,2.19109917,171.6,171.58,4.11040793]
[1641318294263,7.42009917,171.6,171.58,4.11040793]
[1641318294465,27.66479,171.59,171.56,1.91598366]
[1641318295063,2.9999,171.57,171.54,12.34298182]